Cogmind - Beta 16.1 @@@ ROGUE MODE // 2026.02.18 @ 00:54:14 Player: Megaknight51 Result: Destroyed by P-80 Master with Gamma Rifle Performance ------------- Evolutions (9) 4500 Regions Visited (13) 2600 Robots Destroyed (33) 165 Value Destroyed (802) 802 Prototype IDs (43) 860 Alien Tech Used (3) 600 Bonus (572) 572 TOTAL SCORE: 10099 Bonus ------- Registered with UFD 300 Met Zhirov 300 Friendly Fire -28 Cogmind --------- Core Integrity 0/1600 Matter 203/300 Energy 100/100 System Corruption 9% Temperature Cool (0) Movement Core (50) Location -1/Access Parts ------- > --- POWER (3) -------- (None) > --- PROPULSION (7) --- (None) > --- UTILITY (13) ----- Advanced Signal Interpreter > --- WEAPON (2) ------- (None) > --- INVENTORY (5) ---- Centrium Leg Improved Trap Scanner Triangulator Improved Plasma Cutter Heavy Mace Peak State ------------ > --- POWER ------------ Fusion Reactor Fusion Reactor > --- PROPULSION ------- Field Propulsion Drive Flightbrick > --- UTILITY ---------- Advanced Power Amplifier Advanced Signal Interpreter Surveybot 17 Chip Advanced Transmission Jammer Advanced ECM Suite Phase Armor Hacking Suite Makeshift Hacking Suite Advanced System Shield Experimental System Shield > --- WEAPON ----------- (None) > --- INVENTORY -------- Heavy Antimatter Reactor Improved Trap Scanner Triangulator Improved Plasma Cutter Heavy Mace [Rating: 137] Favorites ----------- Power Ion Engine Engine Ion Engine Power Core Nuclear Core Reactor Fusion Reactor Propulsion Wheel Leg Centrium Leg Wheel Wheel Flight Unit Field Propulsion Drive Utility Large Storage Unit Device Seismic Detector Storage Large Storage Unit Processor Surveybot 17 Chip Hackware Advanced System Shield Artifact Phase Armor Weapon EM Pulse Gun Energy Gun EM Pulse Gun Ballistic Gun Assault Rifle Ballistic Cannon Slug Cannon Launcher Grenade Launcher Special Weapon Remote Datajack Impact Weapon Heavy Mace Slashing Weapon Ripper Build | -11 -10 -10 -7 -5 -5 -5 -5 -4 -4 -3 -3 -2 -1 ------- Run | Yrd Mat Sub Scr Fac Upp Upp Zhi Pro Fac Res Qua Res Acc Slots Evolved 18 | . . . . 10 . . . . 2 2 . 2 2 Power 2 | . . . . 2 . . . . . . . . . Propulsion 5 | . . . . 3 . . . . 1 . . 1 . Utility 11 | . . . . 5 . . . . 1 2 . 1 2 Weapon . | . . . . . . . . . . . . . . Parts Attached 53 | 8 3 4 5 11 . . 7 2 1 4 2 2 4 Power 9 | 1 1 1 2 3 . . 1 . . . . . . Engine 4 | 1 1 1 1 . . . . . . . . . . Core 2 | . . . 1 1 . . . . . . . . . Reactor 3 | . . . . 2 . . 1 . . . . . . Propulsion 7 | 2 . 1 . 2 . . . . . . . 1 1 Treads . | . . . . . . . . . . . . . . Leg 1 | . . . . . . . . . . . . . 1 Wheel 3 | 2 . 1 . . . . . . . . . . . Hover . | . . . . . . . . . . . . . . Flight 3 | . . . . 2 . . . . . . . 1 . Utility 28 | 2 1 . 2 5 . . 6 1 1 4 2 1 3 Device 15 | 1 . . 2 2 . . 5 . . 2 1 1 1 Storage 2 | 1 1 . . . . . . . . . . . . Processor 5 | . . . . 3 . . . . . 1 . . 1 Hackware 5 | . . . . . . . 1 1 1 1 . . 1 Protection . | . . . . . . . . . . . . . . Artifact 1 | . . . . . . . . . . . 1 . . Weapon 9 | 3 1 2 1 1 . . . 1 . . . . . Energy Gun 2 | 2 . . . . . . . . . . . . . Energy Cannon . | . . . . . . . . . . . . . . Ballistic Gun 1 | 1 . . . . . . . . . . . . . Ballistic Cannon 1 | . . 1 . . . . . . . . . . . Launcher 1 | . . 1 . . . . . . . . . . . Special Weapon 2 | . 1 . 1 . . . . . . . . . . Impact Weapon 1 | . . . . . . . . 1 . . . . . Slashing Weapon 1 | . . . . 1 . . . . . . . . . Piercing Weapon . | . . . . . . . . . . . . . . Special Melee Weapon . | . . . . . . . . . . . . . . Unidentified Prototypes 7 | . . . . 1 . . 4 . 1 . 1 . . Parts Lost 21 | . . 2 . . . 2 . . 1 1 1 10 4 Power 3 | . . . . . . . . . . . . 3 . Propulsion 4 | . . 1 . . . . . . . . . 3 . Utility 12 | . . . . . . 1 . . 1 1 1 4 4 Weapon 2 | . . 1 . . . 1 . . . . . . . Highest Loss Streak 10 | . . 1 . . . 2 . . 1 1 1 10 2 To Critical Strikes 1 | . . . . . . . . . . . . 1 . Average Backups 8 | 3 8 12 10 5 5 5 4 4 4 4 4 4 4 Power 1 | . 1 2 1 . 1 1 1 1 1 1 1 . . Propulsion 1 | . 2 2 1 . . . . . . . . . . Utility 3 | . 2 3 5 3 3 3 2 2 2 2 2 2 2 Weapon 2 | 1 2 4 2 . . . . . . . . . 1 Tool/Special . | . . . . . . . . . . . . . . Unused Backups 17 | 1 . 5 6 3 . . . . . . 1 . 1 Power 3 | . . 2 1 . . . . . . . . . . Propulsion 5 | 1 . 1 3 . . . . . . . . . . Utility 6 | . . 2 1 2 . . . . . . 1 . . Weapon 2 | . . . 1 1 . . . . . . . . . Tool/Special 1 | . . . . . . . . . . . . . 1 Average Slot Usage (%) 79 | . 99 95 100 57 60 57 55 64 62 53 57 49 12 Engine 8 | . 13 14 13 . . . . . . . . . . Reactor 2 | . . . . 5 5 5 8 10 9 8 8 6 . Wheel 15 | . 28 23 28 . . . . . . . . . . Flight 3 | . . . . 9 10 10 10 10 9 8 8 6 . Device 14 | . 14 14 14 14 15 15 19 25 21 14 12 13 2 Storage 8 | . 14 14 14 . . . . . . . . . . Processor 3 | . . . . 14 15 13 10 10 9 8 8 7 5 Hackware 2 | . . . . . . . 2 8 10 12 16 12 4 Energy Gun 6 | . 14 3 14 . . . . . . . . . . Ballistic Gun 2 | . 11 . . . . . . . . . . . . Ballistic Cannon 2 | . . 10 . . . . . . . . . . . Launcher 2 | . . 11 . . . . . . . . . . . Special Weapon 4 | . 2 2 13 1 . . . . . . . . . Peak Build Rating 137 | 7 8 15 22 95 93 93 99 103 108 114 137 117 32 Average Rating 42 | 5 7 11 18 89 93 89 88 99 101 107 111 97 16 On Entrance 61 | . 7 8 15 22 93 93 80 96 100 102 109 109 23 Avg Prop Armor Cover (%) . | . . . . . . . . . . . . . . Naked Turns . | . . . . . . . . . . . . . . Heaviest Build 42 | 15 30 36 35 42 30 30 40 34 34 34 34 35 3 Greatest Support 32 | 20 20 20 20 31 31 31 31 31 31 32 32 32 30 Greatest Overweight (x) 3 | . 1 3 1 1 . . 1 1 1 1 1 3 . Average Overweight (x) . | . . 1 1 . . . . . . . . . . Largest Inventory Capacity 15 | 8 15 15 15 15 5 5 5 5 5 5 5 5 5 Average Capacity 10 | 7 12 15 15 5 5 5 5 5 5 5 5 5 5 Most Carried 15 | 7 10 15 15 15 5 5 5 5 5 5 5 5 5 Average Carried 9 | 3 8 13 14 5 5 5 4 4 4 4 4 4 4 Final Capacity 15 | 8 15 15 15 5 5 5 5 5 5 5 5 5 5 Final Carried 15 | 7 10 15 15 5 5 5 5 4 5 5 5 4 5 Class Distribution -------------------- 66% | Mutant 14% | Hacker-Mutant 6% | Ninja 4% | Hacker-Scout Dominant Class ---------------- Mutant | -10/Materials Mutant | -10/Subcaves Mutant | -7/Scraptown Ninja | -5/Factory Ninja | -5/Upper Caves Ninja | -5/Upper Caves Mutant | -5/Zhirov Hacker-Scout | -4/Proximity Caves Hacker-Assassin | -4/Factory Hacker-Mutant | -3/Research Hacker-Mutant | -3/Quarantine Hacker-Mutant | -2/Research Mutant | -1/Access Resources | -11 -10 -10 -7 -5 -5 -5 -5 -4 -4 -3 -3 -2 -1 ----------- Run | Yrd Mat Sub Scr Fac Upp Upp Zhi Pro Fac Res Qua Res Acc Matter Collected 1400 | 334 164 364 56 . . 69 . 137 . . 276 . . Remotely . | . . . . . . . . . . . . . . Salvage Created 1077 | 171 400 230 . . . . . . . . 276 . . Parts 59 | 14 27 16 . . . . . . . . 2 . . Haulers Intercepted 1 | . 1 . . . . . . . . . . . . Recyclers Shooed 1 | . . . . . . . . . . . 1 . . Parts Field Recycled . | . . . . . . . . . . . . . . Retrieved Matter . | . . . . . . . . . . . . . . Parts Self-Destructed 6 | . . 6 . . . . . . . . . . . Prevented . | . . . . . . . . . . . . . . Parts Restored . | . . . . . . . . . . . . . . Kills | -11 -10 -10 -7 -5 -5 -5 -5 -4 -4 -3 -3 -2 -1 ------- Run | Yrd Mat Sub Scr Fac Upp Upp Zhi Pro Fac Res Qua Res Acc Combat Hostiles Destroyed 19 | . 7 12 . . . . . . . . . . . Guns 8 | . 7 1 . . . . . . . . . . . Cannons 4 | . . 4 . . . . . . . . . . . AOE 7 | . . 7 . . . . . . . . . . . Classes Destroyed 9 | 3 3 2 . . . . . . . . 1 . . Worker 2 | 1 1 . . . . . . . . . . . . Builder 1 | . . . . . . . . . . . 1 . . Tunneler 4 | 4 . . . . . . . . . . . . . Hauler 1 | . 1 . . . . . . . . . . . . Recycler 3 | 1 . . . . . . . . . . 2 . . Operator 3 | . 3 . . . . . . . . . . . . Swarmer 3 | . . 3 . . . . . . . . . . . Grunt 7 | . 7 . . . . . . . . . . . . Subdweller 9 | . . 9 . . . . . . . . . . . Best Kill Streak 3 | 3 2 3 . . . . . . . . 2 . . Combat Bots Only 3 | . 2 3 . . . . . . . . . . . Max Kills in Single Turn 3 | 1 1 3 . . . . . . . . 1 . . Gunslinging . | . . . . . . . . . . . . . . Exploded 2 | . . 2 . . . . . . . . . . . Melee . | . . . . . . . . . . . . . . Uniques/NPCs Destroyed . | . . . . . . . . . . . . . . Combat | -11 -10 -10 -7 -5 -5 -5 -5 -4 -4 -3 -3 -2 -1 -------- Run | Yrd Mat Sub Scr Fac Upp Upp Zhi Pro Fac Res Qua Res Acc Hostile Shots Fired 433 | . 22 19 . 14 . . . 4 73 50 44 71 136 Missed 188 | . 5 5 . 8 . . . 1 28 26 28 24 63 Hits 245 | . 17 14 . 6 . . . 3 45 24 16 47 73 Projectile 245 | . 17 14 . 6 . . . 3 45 24 16 47 73 Critical Strikes 17 | . . . . 1 . . . . 3 2 1 3 7 Damage Taken 5270 | . 209 361 . 132 . 310 . 44 827 554 278 828 1727 Core 2427 | . 63 114 . 39 . 153 . . 150 33 15 254 1606 Absorbed by Shields . | . . . . . . . . . . . . . . Core Remaining (%) 78 | 100 . . 29 . . . . 75 86 . 96 82 . Volleys Fired 100 | 18 44 38 . . . . . . . . . . . Largest 2 | 2 2 2 . . . . . . . . . . . Hottest 100 | 70 100 100 . . . . . . . . . . . Shots Fired 176 | 36 82 58 . . . . . . . . . . . Gun 118 | 36 76 6 . . . . . . . . . . . Cannon 20 | . . 20 . . . . . . . . . . . Launcher 15 | . . 15 . . . . . . . . . . . Special 23 | . 6 17 . . . . . . . . . . . Kinetic 76 | 18 38 20 . . . . . . . . . . . Thermal 78 | 16 44 18 . . . . . . . . . . . Explosive 15 | . . 15 . . . . . . . . . . . Electromagnetic 7 | 2 . 5 . . . . . . . . . . . Robot Hit Streak 19 | 4 19 9 . . . . . . . . . . . Robot Miss Streak 3 | 3 3 2 . . . . . . . . . . . Penetration Max . | . . . . . . . . . . . . . . Secondary Targets . | . . . . . . . . . . . . . . Shots Hit Robots 95 | 19 51 22 . . . . . . . . 3 . . Core Hits 52 | 7 24 19 . . . . . . . . . . 2 Critical Kills . | . . . . . . . . . . . . . . Critical Parts Destroyed 1 | . . . . . . . . . . . 1 . . Critical Strikes 5 | 1 3 . . . . . . . . . 1 . . Burn 4 | 1 3 . . . . . . . . . . . . Smash 1 | . . . . . . . . . . . 1 . . Melee Attacks 79 | . . . . 30 . 6 . 4 11 4 13 10 1 Impact 43 | . . . . . . . . 4 11 4 13 10 1 Slashing 36 | . . . . 30 . 6 . . . . . . . Piercing . | . . . . . . . . . . . . . . Sneak Attacks 3 | . . . . . . . . . . . 3 . . Combat Hostiles . | . . . . . . . . . . . . . . Follow-up Attacks . | . . . . . . . . . . . . . . Damage Inflicted 2318 | 234 681 1160 . . . . . . . . 229 1 13 Guns 962 | 234 681 47 . . . . . . . . . . . Cannons 334 | . . 334 . . . . . . . . . . . Explosions 779 | . . 779 . . . . . . . . . . . Melee 229 | . . . . . . . . . . . 229 . . Ramming 14 | . . . . . . . . . . . . 1 13 Kinetic 824 | 133 357 334 . . . . . . . . . . . Thermal 424 | 86 324 14 . . . . . . . . . . . Explosive 779 | . . 779 . . . . . . . . . . . Electromagnetic 48 | 15 . 33 . . . . . . . . . . . Impact 229 | . . . . . . . . . . . 229 . . Slashing . | . . . . . . . . . . . . . . Piercing . | . . . . . . . . . . . . . . Highest Corruption 9 | . . . . 1 1 5 5 5 . 3 3 . 9 Average Corruption 3 | . . . . 1 1 2 5 5 . 2 3 . 5 Corruption Purged . | . . . . . . . . . . . . . . Corruption Blocked . | . . . . . . . . . . . . . . Effects 25 | . . . . . 1 1 5 5 . 3 5 . 5 Message Errors 7 | . . . . . . 1 2 2 . . 1 . 1 Matter Fused 10 | . . . . . 1 . 2 1 . 1 2 . 3 Heat Flow Errors 1 | . . . . . . . . . . 1 . . . Energy Discharges 2 | . . . . . . . . . . 1 1 . . Parts Rejected 1 | . . . . . . . . . . . . . 1 Parts Fused 1 | . . . . . . . . . . . 1 . . Data Loss (minor) 3 | . . . . . . . 1 2 . . . . . Overload Shots . | . . . . . . . . . . . . . . Overflow Damage 169 | . . . . . . . . . . . 169 . . Projectiles . | . . . . . . . . . . . . . . Explosions . | . . . . . . . . . . . . . . Melee 169 | . . . . . . . . . . . 169 . . Knockbacks 3 | . . . . . . . . . . . 3 . . Impact 3 | . . . . . . . . . . . 3 . . Kinetic . | . . . . . . . . . . . . . . Secondary . | . . . . . . . . . . . . . . Self-Inflicted Damage 18 | . . 13 . . . . . . . . . . 5 Shots 2 | . . 2 . . . . . . . . . . . Rammed 5 | . . . . . . . . . . . . 1 4 Targets Rammed 5 | . . . . . . . . . . . . 1 4 Kicked . | . . . . . . . . . . . . . . Crushed . | . . . . . . . . . . . . . . Highest Temperature 302 | 72 90 . . 302 . . . . 10 93 . . . Average Temperature 70 | 24 24 . . 112 . . . . 10 52 . . . Received Heat Transfer 327 | . 114 96 . . . . . . 9 9 . . 99 Siege Activations . | . . . . . . . . . . . . . . Martial Activations . | . . . . . . . . . . . . . . Shielding Activations . | . . . . . . . . . . . . . . Robots Disrupted . | . . . . . . . . . . . . . . Combat Hostiles . | . . . . . . . . . . . . . . Robots Corrupted 3 | . . . . . . . . . . . 3 . . Combat Hostiles . | . . . . . . . . . . . . . . Parts Fried 4 | . . . . . . . . . . . 4 . . Impact Corruptions 6 | . . . . . . . . . . . 6 . . Robots Melted . | . . . . . . . . . . . . . . Combat Hostiles . | . . . . . . . . . . . . . . Parts Melted 3 | 1 2 . . . . . . . . . . . . Heat Transferred 1517 | 333 1147 37 . . . . . . . . . . . Parts Sabotaged . | . . . . . . . . . . . . . . Parts Stolen . | . . . . . . . . . . . . . . Parts Stripped . | . . . . . . . . . . . . . . Power Chain Reactions . | . . . . . . . . . . . . . . Alert | -11 -10 -10 -7 -5 -5 -5 -5 -4 -4 -3 -3 -2 -1 ------- Run | Yrd Mat Sub Scr Fac Upp Upp Zhi Pro Fac Res Qua Res Acc Maximum Alert Level . | . . . . . . . . . . . . . . Low Security (%) 100 | 100 100 . . 100 . . . . 100 100 100 100 100 Level 1 . | . . . . . . . . . . . . . . Level 2 . | . . . . . . . . . . . . . . Level 3 . | . . . . . . . . . . . . . . Level 4 . | . . . . . . . . . . . . . . Level 5 . | . . . . . . . . . . . . . . High Security . | . . . . . . . . . . . . . . Max Security . | . . . . . . . . . . . . . . Peak Influence 175 | 10 68 . . 30 . . . . 35 25 32 21 175 Initial 6 | . . . . . . . . . 6 . . . . Average 16 | 2 26 . . 3 . . . . 8 6 8 4 46 Influence Increases 1304 | 30 441 70 . 137 . . . 30 67 100 90 54 285 Destroy 0b10 Robot/C 200 | . 140 60 . . . . . . . . . . . Destroy 0b10 Robot/NC 70 | 30 25 . . . . . . . . . 15 . . Destroy Leader 52 | . 42 10 . . . . . . . . . . . Successful Hack 176 | . 48 . . 40 . . . . 34 36 18 . . Select Force Hacks 60 | . 60 . . . . . . . . . . . . Disable Machine 75 | . . . . . . . . . . 30 30 . 15 Destroy Structure 116 | . 6 . . 52 . . . . 18 4 12 24 . Partial Spotted 135 | . 15 . . . . . . . 15 30 15 30 30 Lose Combat Pursuer 420 | . 105 . . 45 . . . 30 . . . . 240 Influence Decreases 1129 | 30 387 124 . 107 12 18 . 20 77 98 92 54 110 Entered New Map 48 | . . 26 . . 12 4 . . 4 . 2 . . Time Decay 1034 | 30 387 98 . 107 . 14 . 20 71 96 80 51 80 Lost Part 47 | . . . . . . . . . 2 2 10 3 30 Squads Dispatched 15 | . 6 . . 3 . . . . . 3 1 . 2 Investigation 2 | . 2 . . . . . . . . . . . . Extermination 5 | . . . . 2 . . . . . 2 . . 1 Reinforcement 8 | . 4 . . 1 . . . . . 1 1 . 1 Assault . | . . . . . . . . . . . . . . Garrison . | . . . . . . . . . . . . . . Intercept . | . . . . . . . . . . . . . . Searches Triggered . | . . . . . . . . . . . . . . Construction Impeded . | . . . . . . . . . . . . . . Haulers Reinforced . | . . . . . . . . . . . . . . Active Scanning Responses . | . . . . . . . . . . . . . . Cargo Convoy Interrupts . | . . . . . . . . . . . . . . Stealth | -11 -10 -10 -7 -5 -5 -5 -5 -4 -4 -3 -3 -2 -1 --------- Run | Yrd Mat Sub Scr Fac Upp Upp Zhi Pro Fac Res Qua Res Acc Distress Signals 3 | . 2 . . . . . . . . . . . 1 Communications Jammed 47 | . . . . . . . . . 8 39 . . . Distress Signals 16 | . . . . . . . . . 8 8 . . . Times Spotted 130 | . 29 12 . 10 . . . 1 20 20 3 4 31 Peak Tracking Total 18 | . 5 3 . 3 . . . 4 7 9 2 2 18 Tactical Retreats 23 | . 3 1 . 2 . . . 1 5 5 . 1 5 ECM-based Alert Blocks 25 | . . . . . . . . 2 10 12 . 1 . Traps | -11 -10 -10 -7 -5 -5 -5 -5 -4 -4 -3 -3 -2 -1 ------- Run | Yrd Mat Sub Scr Fac Upp Upp Zhi Pro Fac Res Qua Res Acc Traps Triggered 2 | . 1 . . . . . . . . . . . 1 Indirectly . | . . . . . . . . . . . . . . Trap Hack Attempts . | . . . . . . . . . . . . . . Triggered . | . . . . . . . . . . . . . . Disarmed . | . . . . . . . . . . . . . . Reprogrammed . | . . . . . . . . . . . . . . Reused . | . . . . . . . . . . . . . . Traps Extracted . | . . . . . . . . . . . . . . Installed . | . . . . . . . . . . . . . . Triggered . | . . . . . . . . . . . . . . Machines | -11 -10 -10 -7 -5 -5 -5 -5 -4 -4 -3 -3 -2 -1 ---------- Run | Yrd Mat Sub Scr Fac Upp Upp Zhi Pro Fac Res Qua Res Acc Machines Disabled 6 | . . 1 . . . . . . . 2 2 . 1 Max in Single Turn 1 | . . 1 . . . . . . . 1 1 . 1 Machines Repaired . | . . . . . . . . . . . . . . Machines Dismantled . | . . . . . . . . . . . . . . Machines Sabotaged . | . . . . . . . . . . . . . . Overloaded Fab Kills . | . . . . . . . . . . . . . . Hacking | -11 -10 -10 -7 -5 -5 -5 -5 -4 -4 -3 -3 -2 -1 --------- Run | Yrd Mat Sub Scr Fac Upp Upp Zhi Pro Fac Res Qua Res Acc Machines Accessed 30 | . 7 1 3 4 . . 6 . 3 3 2 1 . Terminals 14 | . 5 . . 4 . . . . 3 1 1 . . Fabricators 1 | . . . . . . . . . . . . 1 . Repair Stations . | . . . . . . . . . . . . . . Recycling Units 2 | . 2 . . . . . . . . . . . . Scanalyzers 3 | . . . . . . . . . . 2 1 . . Garrison Access . | . . . . . . . . . . . . . . Total Hacks 86 | . 17 1 23 6 . . 19 . 10 4 5 1 . Successful 69 | . 12 1 23 3 . . 19 . 4 3 3 1 . Failed 17 | . 5 . . 3 . . . . 6 1 2 . . Catastrophic 4 | . . . . 2 . . . . 1 . 1 . . Database Lockouts . | . . . . . . . . . . . . . . Manual 35 | . 17 . . 6 . . . . 8 1 3 . . Terminals 37 | . 15 . . 6 . . . . 10 2 4 . . Fabricators 1 | . . . . . . . . . . . . 1 . Repair Stations . | . . . . . . . . . . . . . . Recycling Units 2 | . 2 . . . . . . . . . . . . Scanalyzers 3 | . . . . . . . . . . 2 1 . . Garrison Access . | . . . . . . . . . . . . . . Terminal Hacks 51 | . 6 1 23 . . . 19 . 1 . 1 . . Record 30 | . . . 22 . . . 7 . . . 1 . . Part Schematic 6 | . 2 . . . . . 4 . . . . . . Robot Analysis 6 | . 2 . . . . . 4 . . . . . . Prototype ID Bank 5 | . . . . . . . 4 . 1 . . . . Terminal Index 1 | . 1 . . . . . . . . . . . . Recycling Unit Index 1 | . 1 . . . . . . . . . . . . Proto ID Catalog 2 | . . 1 1 . . . . . . . . . . Fabricator Hacks 1 | . . . . . . . . . . . . 1 . Network Status 1 | . . . . . . . . . . . . 1 . Repair Station Hacks . | . . . . . . . . . . . . . . Recycling Unit Hacks . | . . . . . . . . . . . . . . Scanalyzer 3 | . . . . . . . . . . 2 1 . . Retrieve Study 3 | . . . . . . . . . . 2 1 . . Garrison Access Hacks . | . . . . . . . . . . . . . . Unauthorized Hacks 14 | . 6 . . 3 . . . . 3 1 1 . . Terminals 12 | . 4 . . 3 . . . . 3 1 1 . . Botnet 12 | . 4 . . 3 . . . . 3 1 1 . . Fabricators . | . . . . . . . . . . . . . . Repair Stations . | . . . . . . . . . . . . . . Recycling Units 2 | . 2 . . . . . . . . . . . . Tunnel 2 | . 2 . . . . . . . . . . . . Scanalyzers . | . . . . . . . . . . . . . . Garrison Access . | . . . . . . . . . . . . . . Data Cores Recovered . | . . . . . . . . . . . . . . Used . | . . . . . . . . . . . . . . Hacking Detections 13 | . 5 . . 3 . . . . 3 1 1 . . Full Trace Events . | . . . . . . . . . . . . . . Feedback Events . | . . . . . . . . . . . . . . Feedback Blocked . | . . . . . . . . . . . . . . Robot Schematics Acquired . | . . . . . . . . . . . . . . Robots Built . | . . . . . . . . . . . . . . Authchips . | . . . . . . . . . . . . . . Time . | . . . . . . . . . . . . . . Total Robot Build Rating . | . . . . . . . . . . . . . . Part Schematics Acquired 6 | . 2 . . . . . 4 . . . . . . Parts Built . | . . . . . . . . . . . . . . Authchips . | . . . . . . . . . . . . . . Time . | . . . . . . . . . . . . . . Total Part Build Rating . | . . . . . . . . . . . . . . Part Studies Acquired 3 | . . . . . . . . . . 2 1 . . Parts Repaired . | . . . . . . . . . . . . . . Time . | . . . . . . . . . . . . . . Parts Recycled . | . . . . . . . . . . . . . . Recycled Matter . | . . . . . . . . . . . . . . Retrieved Matter . | . . . . . . . . . . . . . . Retrieved Components . | . . . . . . . . . . . . . . Parts Scanalyzed . | . . . . . . . . . . . . . . Part Schematics Acquired . | . . . . . . . . . . . . . . Parts Damaged . | . . . . . . . . . . . . . . Bothacking | -11 -10 -10 -7 -5 -5 -5 -5 -4 -4 -3 -3 -2 -1 ------------ Run | Yrd Mat Sub Scr Fac Upp Upp Zhi Pro Fac Res Qua Res Acc Used RIF Installer . | . . . . . . . . . . . . . . Robots Hacked . | . . . . . . . . . . . . . . Non-combat . | . . . . . . . . . . . . . . Combat . | . . . . . . . . . . . . . . Robot Hacks Applied . | . . . . . . . . . . . . . . Relay Couplers Released . | . . . . . . . . . . . . . . Fabnet Peak Effective % . | . . . . . . . . . . . . . . Robots Rewired . | . . . . . . . . . . . . . . Allies Hacked . | . . . . . . . . . . . . . . Hacks Repelled . | . . . . . . . . . . . . . . Allies | -11 -10 -10 -7 -5 -5 -5 -5 -4 -4 -3 -3 -2 -1 -------- Run | Yrd Mat Sub Scr Fac Upp Upp Zhi Pro Fac Res Qua Res Acc Total Allies . | . . . . . . . . . . . . . . Largest Group . | . . . . . . . . . . . . . . Highest-Rated Group . | . . . . . . . . . . . . . . Highest-Rated Ally . | . . . . . . . . . . . . . . Initial UFD Resources 50 | . . . . 38 38 38 38 41 41 45 45 48 50 Total Orders 3 | . . . 3 . . . . . . . . . . STAY 1 | . . . 1 . . . . . . . . . . EXPLORE 1 | . . . 1 . . . . . . . . . . RETURN 1 | . . . 1 . . . . . . . . . . Ally Attacks . | . . . . . . . . . . . . . . Total Damage . | . . . . . . . . . . . . . . Kills . | . . . . . . . . . . . . . . Allies Corrupted . | . . . . . . . . . . . . . . Allies Melted . | . . . . . . . . . . . . . . Intel | -11 -10 -10 -7 -5 -5 -5 -5 -4 -4 -3 -3 -2 -1 ------- Run | Yrd Mat Sub Scr Fac Upp Upp Zhi Pro Fac Res Qua Res Acc Active Infowar (turns) 6167 | 67 1166 1335 1241 532 16 124 165 266 300 389 263 230 73 Optics 630 | . . . . 522 16 92 . . . . . . . Sensors 2857 | . . . 1113 532 16 124 165 266 300 266 2 . 73 Terrain 1532 | . . . . 520 16 124 165 266 276 . . 165 . Traps 3 | . . . . . . . 3 . . . . . . Seismic 2696 | 67 1166 1335 128 . . . . . . . . . . Triangulation 829 | . . . . . . . 45 266 300 218 . . . Jamming 2268 | . . . . 518 16 124 165 266 300 389 263 227 . ECM 1105 | . . . . . . . 3 41 196 389 263 213 . Robot Analysis Total 6 | . 2 . . . . . 4 . . . . . . Derelict Logs Recovered 6 | . . 2 4 . . . . . . . . . . Drone Launches 3 | . . . 3 . . . . . . . . . . Drone Recoveries 3 | . . . 3 . . . . . . . . . . Exploration | -11 -10 -10 -7 -5 -5 -5 -5 -4 -4 -3 -3 -2 -1 ------------- Run | Yrd Mat Sub Scr Fac Upp Upp Zhi Pro Fac Res Qua Res Acc Turns Passed 6666 | 174 1166 1335 1410 532 16 124 165 266 300 389 263 251 275 Spaces Moved 7732 | 106 833 1099 1443 829 40 273 281 440 506 808 275 293 506 Core 524 | 4 . . . . . . . . . . . 20 500 Treads . | . . . . . . . . . . . . . . Legs 6 | . . . . . . . . . . . . . 6 Wheels 3484 | 102 833 1099 1443 7 . . . . . . . . . Hover . | . . . . . . . . . . . . . . Flight 3718 | . . . . 822 40 273 281 440 506 808 275 273 . Fastest Speed 39 | 50 80 95 95 39 39 39 39 39 39 39 39 39 50 Average Speed 69 | 78 89 102 95 45 39 39 51 41 50 40 67 70 50 Slowest Speed 280 | 80 95 125 95 99 39 39 99 99 99 99 99 280 120 Overloaded Moves . | . . . . . . . . . . . . . . Propulsion Burnouts . | . . . . . . . . . . . . . . Robots Hopped 23 | . . . . . . . . . 1 18 4 . . Potential Cave-ins 5 | . . . . 4 . 1 . . . . . . . Cave-ins Triggered 1 | . . . . . . 1 . . . . . . . Teleports 1 | . . . . . . . 1 . . . . . . Exploration Rate (%) 39 | 5 92 55 81 29 23 59 62 54 17 25 21 7 16 Regions Visited 13 Branch Regions 7 Pre-discovered Areas 8 | . 2 . 3 . . . 3 . . . . . . Known Exits Taken 9 | . . . . 1 1 1 1 1 1 1 1 1 . Unknown Exits Taken 4 | 1 1 1 1 . . . . . . . . . . Scrap Searched 16 | . . 4 6 . . 2 . 4 . . . . . Spaces Dug 71 | . 6 . . 30 . 6 . 4 9 2 6 8 . Terrain Destroyed 138 | . 6 67 . 30 . 6 . 4 9 2 6 8 . Melee 65 | . . . . 30 . 6 . 4 9 2 6 8 . Projectile 14 | . 6 8 . . . . . . . . . . . AOE 59 | . . 59 . . . . . . . . . . . Terrain Rammed . | . . . . . . . . . . . . . . Walls Destroyed . | . . . . . . . . . . . . . . Machines Disabled . | . . . . . . . . . . . . . . Actions | -11 -10 -10 -7 -5 -5 -5 -5 -4 -4 -3 -3 -2 -1 --------- Run | Yrd Mat Sub Scr Fac Upp Upp Zhi Pro Fac Res Qua Res Acc Total 8634 | 156 1160 1216 1486 942 39 280 299 517 531 846 325 317 520 Wait 550 | 16 273 46 16 54 . 2 . 67 . 35 33 7 1 Move 7676 | 105 832 1098 1442 828 39 272 280 439 503 774 266 292 506 Hop 20 | . . . . . . . . . 1 15 4 . . Pick Up 42 | 8 3 13 9 4 . . 2 1 . 1 1 . . Fast Attach 38 | 7 3 1 4 3 . . 5 1 1 4 2 2 5 Attach 32 | . . 1 . 9 . . 4 2 6 4 2 3 1 Detach 24 | . . . . 3 . . 2 1 7 5 2 2 2 Swap 22 | 1 3 8 2 1 . . 3 1 2 1 . . . Drop 46 | 1 2 11 13 10 . . 3 1 . 3 2 . . Fire 100 | 18 44 38 . . . . . . . . . . . Melee 79 | . . . . 30 . 6 . 4 11 4 13 10 1 Ram 5 | . . . . . . . . . . . . 1 4 Kick . | . . . . . . . . . . . . . . Crush . | . . . . . . . . . . . . . . Escape Stasis . | . . . . . . . . . . . . . . Rewire . | . . . . . . . . . . . . . . Trap . | . . . . . . . . . . . . . . Miscellaneous . | . . . . . . . . . . . . . . Route ------- -11/Scrapyard -10/Materials (discovered 5 exits: [*Mat x2] / [*Min x2] / *Sub) -10/Subcaves (discovered 2 exits: [*Mat] / *Scr) -7/Scraptown -5/Factory (discovered 6 exits: *Fac x4 / *Upp x2) -5/Upper Caves -5/Upper Caves (discovered 2 exits: *Fac / *Zhi) -5/Zhirov -4/Proximity Caves -4/Factory -3/Research (discovered 5 exits: *Res x3 / *Arm / *Qua) -3/Quarantine -2/Research (discovered 3 exits: *Acc x3) -1/Access History --------- Turn | Location | Event 56 | -11/Scrapyard | Discovered new exit (range 16) 175 | -11/Scrapyard | Entered Materials 225 | -10/Materials | Discovered new exit (range 15) 309 | -10/Materials | Build established: Mutant 516 | -10/Materials | Discovered new exit (range 10) 590 | -10/Materials | Discovered new exit (range 7) 748 | -10/Materials | Discovered new exit (range 16) 802 | -10/Materials | Discovered new exit (range 14) 1341 | -10/Materials | Entered Subcaves 1342 | -10/Subcaves | Approached by a straggling Scientist 1378 | -10/Subcaves | Shifting Twisted Machinery released Sub. Beam Cannon 1417 | -10/Subcaves | Shifting Twisted Machinery released Slug Cannon 1504 | -10/Subcaves | Learned Materials trap positions 1599 | -10/Subcaves | Shifting Twisted Machinery released Battle Rifle 1727 | -10/Subcaves | Shifting Twisted Machinery released Battle Cannon 1831 | -10/Subcaves | Scientist uncovered a shortcut to Scraptown 2063 | -10/Subcaves | Core integrity fell below 50% 2077 | -10/Subcaves | Discovered new exit (range 14) 2232 | -10/Subcaves | Shifting Twisted Machinery released Sub. Monowheel 2241 | -10/Subcaves | Shifting Twisted Machinery released Flamer 2271 | -10/Subcaves | Learned location of 1 exit from Materials 2362 | -10/Subcaves | Visited 4L-MR0's lab 2377 | -10/Subcaves | Found Flightbrick 2676 | -10/Subcaves | Entered Scraptown 2876 | -7/Scraptown | Scanned Subdweller tech in exchange for log data 2879 | -7/Scraptown | Learned Research emergency access door positions 2880 | -7/Scraptown | Learned Research security intel 2881 | -7/Scraptown | Learned Factory stockpile data 2883 | -7/Scraptown | Learned location of 1 exit from Factory 3277 | -7/Scraptown | Heard Great Nut preacher, LISTEN AND RECITE! 3290 | -7/Scraptown | Visited Awakened 3296 | -7/Scraptown | Visited Cave Peace 3345 | -7/Scraptown | Visited Comm Corps 3382 | -7/Scraptown | Visited IN-MT5's Study 3391 | -7/Scraptown | Visited The Evicted 3410 | -7/Scraptown | Visited TADAMA 3423 | -7/Scraptown | Visited SPCMW 3471 | -7/Scraptown | Visited UFD Registry 3471 | -7/Scraptown | Registered with UFD as "Nukenade" 3492 | -7/Scraptown | Visited Analyses Database 3505 | -7/Scraptown | Visited Curators Association 3527 | -7/Scraptown | Visited Science Guys 3572 | -7/Scraptown | Delivered Scrap Shield to a Scientist 3628 | -7/Scraptown | Visited Sword Containment 3640 | -7/Scraptown | Visited Scrapoid Pod Storage 3652 | -7/Scraptown | Visited Infowarlord's Domain 3661 | -7/Scraptown | Found Spectral Analyzer 3675 | -7/Scraptown | Visited Cartography Club 3720 | -7/Scraptown | Found Surveybot 17 Chip 3824 | -7/Scraptown | Learned location of Upper Caves (-5) 3824 | -7/Scraptown | Learned location of Proximity Caves (-5) 3824 | -7/Scraptown | Learned location of Extension (-4) 3824 | -7/Scraptown | Learned 12 Materials zone layouts 3824 | -7/Scraptown | Learned 8 Factory zone layouts 3824 | -7/Scraptown | Learned 12 Factory zone layouts 3824 | -7/Scraptown | Learned 16 Factory zone layouts 3824 | -7/Scraptown | Learned 8 Research zone layouts 3824 | -7/Scraptown | Learned 12 Research zone layouts 3824 | -7/Scraptown | Learned 4 Storage zone layouts 3824 | -7/Scraptown | Learned 16 Upper Caves zone layouts 3824 | -7/Scraptown | Learned Materials emergency access door positions 3824 | -7/Scraptown | Learned location of 3 exits from Factory 3824 | -7/Scraptown | Learned location of 3 exits from Lower Caves 3824 | -7/Scraptown | Learned location of 3 exits from Upper Caves 3826 | -7/Scraptown | Discovered new exit (range 10) 3960 | -7/Scraptown | Visited Abandonware Association 3975 | -7/Scraptown | Visited LU-1G1's Boring Crew 3993 | -7/Scraptown | Visited DA-N13 Charitable Foundation 4004 | -7/Scraptown | Found DCF Scrap (30 items) 4086 | -7/Scraptown | Entered Factory 4086 | -5/Factory | Evolved 10 slots: Power x2, Propulsion x3, Utility x5 4087 | -5/Factory | Identified exit to Upper Caves 4088 | -5/Factory | Identified exit to Factory 4095 | -5/Factory | Attached Flightbrick, gained temporary slots: Utility x3 4568 | -5/Factory | Build established: Ninja 4618 | -5/Factory | Entered Upper Caves 4619 | -5/Upper Caves | Identified exit to Upper Caves 4620 | -5/Upper Caves | UFD Scientist delivered a prototype 4634 | -5/Upper Caves | Entered another Upper Caves area 4635 | -5/Upper Caves | Identified exit to Zhirov 4726 | -5/Upper Caves | Crushed by falling debris 4758 | -5/Upper Caves | Entered Zhirov 4758 | -5/Zhirov | Discovered new exit (range 3) 4766 | -5/Zhirov | Met Zhirov 4773 | -5/Zhirov | Learned location of Quarantine (-3) 4773 | -5/Zhirov | Learned location of Testing (-2) 4773 | -5/Zhirov | Learned location of Command (-1) 4785 | -5/Zhirov | Zhirov requested help retrieving the SGEMP Prototype 4796 | -5/Zhirov | Found Alien Artifact 4796 | -5/Zhirov | Identified Integrated Dissipator 4796 | -5/Zhirov | Installed Integrated Dissipator, increased core heat dissipation (+20) 4847 | -5/Zhirov | Found Alien Artifact 4847 | -5/Zhirov | Identified Transdimensional Reconstructor 4847 | -5/Zhirov | Warped through subspace 4923 | -5/Zhirov | Identified exit to Proximity Caves 4923 | -5/Zhirov | Entered Proximity Caves 4953 | -4/Proximity Caves | Spotted B-86 Titan 5162 | -4/Proximity Caves | Discovered exit to Factory (range 16) 5189 | -4/Proximity Caves | Entered Factory 5189 | -4/Factory | Evolved 2 slots: Propulsion x1, Utility x1 5406 | -4/Factory | Found Prototype Hackware 5406 | -4/Factory | Identified Exp. System Shield 5449 | -4/Factory | Spotted B-86 Titan 5464 | -4/Factory | Spotted B-86 Titan 5483 | -4/Factory | Discovered new exit (range 15) 5489 | -4/Factory | Identified exit to Research 5489 | -4/Factory | Entered Research 5489 | -3/Research | Evolved 2 slots: Utility x2 5490 | -3/Research | Identified exit to Research 5490 | -3/Research | Identified exit to Quarantine 5490 | -3/Research | Identified exit to Armory 5689 | -3/Research | Build established: Hacker-Mutant 5791 | -3/Research | Discovered exit to Research (range 9) 5856 | -3/Research | Spotted B-86 Titan 5878 | -3/Research | Entered Quarantine 6058 | -3/Quarantine | Found Alien Artifact 6058 | -3/Quarantine | Identified Phase Armor 6108 | -3/Quarantine | Discovered exit to Research (range 7) 6141 | -3/Quarantine | Entered Research 6141 | -2/Research | Evolved 2 slots: Propulsion x1, Utility x1 6142 | -2/Research | Identified exit to Access 6355 | -2/Research | Discovered exit to Access (range 19) 6392 | -2/Research | Entered Access 6392 | -1/Access | Evolved 2 slots: Utility x2 6413 | -1/Access | Lost 10 parts (3p3n4u) 6627 | -1/Access | Core integrity fell below 50% 6658 | -1/Access | Core integrity fell below 20% 6667 | -1/Access | Destroyed by P-80 Master with Gamma Rifle Last Messages --------------- 06553_ Acquired Adv. Sensor Array. 06556_ Acquired Adv. Signal Interpreter. 06561_ O-32 Director uses terminal to summon reinforcements. 06561_ ALERT: Hostiles spotted, dispatching reinforcements to Terminal A013. 06561_ O-32 Director locks terminal. 06571_ Slug penetrates U-05 Engineer. 06571_ U-05 Engineer destroyed. 06574_ System corrupted: Matter fused (-6). 06582_ Penetrated by Slug. 06618_ System corrupted: Adv. Sensor Array rejected. 06618_ Acquired Adv. Sensor Array. 06618_ Door malfunctions. 06626_ Adv. Sensor Array destroyed. 06628_ Slug penetrates G-73 Enforcer. 06653_ Hacking Suite destroyed. 06654_ Slammed into S-43 Plague. 06655_ P-80 Master resets S-43 Plague, system corruption cleaned. 06655_ Slammed into P-80 Master. [Achievement: I Think I Know What's Going On] Map ----- +----------------------------------------------------+ | #?? #??????????????? | | #?? ???????????????? | | #? ????????????????? | | ##########+### #? " ?????????????????? | | #! # # """??????????????????? | | # # # """ ????????????????? | | # " # + " #??????????????? | | # """" # # ! #??????????????? | | # """"" # # #??????????????? | | # """"" # #? "" "" #??????????????? | | #] ?"""" # #? ""S"" #??????????????? | | # ?????? # #??"""" ??????????????????? | | #???????? # #??######???????????????????? | | ????????? # #???????????????????????????? | | ????????? # #???????????????????????????? | | ????????? # #???????????????????????????? | | ############## #???????????????????????????? | | # ?# #???????????????????????????? | | # # #???????????????????????????? | | ? " # #???????????????????????????? | | ???? """ + #???????????????????????????? | | ?? """ # #???????????????????????????? | | ??? " # #???????????????????????????? | | ?? ?# ########????????????????????? | | ? ?# ##############???????? | | ? ??# @ # #???????? | | # ??# # #???????? | | # ???# + #???????? | | ? ???# # #???????? | | ?########????# # #???????? | | ?????????????# # #???????? | | ?????????????####+### # #???????? | | ????????????????????# # #???????? | | ????????????????????#t # #???????? | | ????????????????????# s/ #???????? | | ????????????????????# # #???????? | | ????????????????????# # #???????? | | ????????????????????# psp##############???????? | | ????????????????????# #?????????????? | | ????????????????????# p #?????????????? | | ###?????????????????# p #?????????????? | | #?????????????????# #?????????????? | | # #?????????????????# #?????????????? | | # #?????????????????# #?????????????? | | # #?????????????????# #?????????????? | | # #???????????????######/###########?????????????? | | # ################# #?????????????????? | | + #?????????????????? | | # ##+#???####### ]!! #?????????????????? | | # #????????????# ]!! +?????????????????? | +----------------------------------------------------+ Best States ------------- Heat Dissipation 72 Energy Generation 63 Energy Capacity 675 Matter Stores 300 Matter Capacity 300 Sight Range 24 Robot Scan Range 16 Terrain Scan Range 20 Terrain Scan Density 1210 ECM Strength 2 Jamming Range 16 Power Amplification 30 Evasion (%) 62 Offensive Hacking 21 Defensive Hacking 30 Item Schematics ----------------- Hcp. Battery | -10/Materials | Hacked Hcp. Storage Unit | -10/Materials | Hacked Assault Drone Bay | -5/Zhirov | Free Exp. Heat Sink | -5/Zhirov | Free Exp. Optical Array | -5/Zhirov | Free Imp. Arc Thrower | -5/Zhirov | Free Robot Schematics ------------------ None Fabricated ------------ Nothing Repaired ---------- Nothing Studied --------- Field Propulsion Drive | -3/Research | Hacked Imp. Plasma Cutter | -3/Research | Hacked Hvy. Mace | -3/Quarantine | Hacked Alien Tech Used ----------------- Integrated Dissipator Transdimensional Reconstructor Phase Armor Achievements -------------- I Think I Know What's Going On Challenges ------------ None Game ------ Seed ForceExplosiveDevice Manual? 0 Play Time 01:29:33 Cumulative 87.0 hours Start 2026.02.17 @ 23:14:47 End 2026.02.18 @ 00:54:14 Sessions 1 Manual Loads 0 Difficulty Rogue Special Mode None Game No. 177 Rogue 177 Adventurer 0 Explorer 0 Win Type - Total 1 Types 1/0/0/0/0/0/0/0/0/0 Lore% 50 Gallery% 38 Achievement% 38 Wizard Run 0 Options --------- Layout 0 ASCII 0 Keyboard 1 Movement Arrows Keybinds 0 Fullscreen 1 Font 18/Smallcaps Map View 76x50 Zoom Use 23% Tactical HUD 1 Map Filters NONE Filters NONE Steam 1 RUN: 9d30d5f4-1d8c-4e6d-8b7d-cb8dcf6a9b88